Cogmind - Beta 16 --- EXPLORER MODE // 2025.11.22 @ 14:17:23 // Winter2019/RPGLIKE Player: RR-3MY Result: Destroyed by JJ-3RN(R) with Subdweller Laser Performance ------------- Evolutions (0) 0 Regions Visited (2) 400 Robots Destroyed (17) 85 Value Destroyed (465) 465 Prototype IDs (7) 140 Alien Tech Used (0) 0 Bonus (0) 0 TOTAL SCORE: 1090 Bonus ------- None Cogmind --------- Core Integrity 0/800 Matter 300/300 Energy 95/100 System Corruption 0% Temperature Cool (6) Movement Core (50) Location -10/Subcaves Parts ------- > --- POWER (2) -------- (None) > --- PROPULSION (4) --- (None) > --- UTILITY (4) ------ (None) > --- WEAPON (1) ------- Particle Gun > --- INVENTORY (3) ---- (None) Peak State ------------ > --- POWER ------------ Light Ion Engine Light Nuclear Core > --- PROPULSION ------- Aluminum Leg Aluminum Leg Aluminum Leg Makeshift Leg > --- UTILITY ---------- Improved Heat Sink Terrain Scanner Seismic Detector Light Armor Plating > --- WEAPON ----------- Particle Gun > --- INVENTORY -------- Subdweller Beam Cannon Flamer [Rating: 19] Favorites ----------- Power Light Ion Engine Engine Light Ion Engine Power Core Light Nuclear Core Propulsion Aluminum Leg Leg Aluminum Leg Utility Seismic Detector Device Seismic Detector Protection Light Armor Plating Weapon Particle Gun Energy Gun Particle Gun Energy Cannon Subdweller Beam Cannon Ballistic Gun Assault Rifle Special Weapon Flamer Build | -11 -10 -10 ------- Run | Yrd Mat Sub Slots Evolved 7 | 7 . . Power 1 | 1 . . Propulsion 3 | 3 . . Utility 3 | 3 . . Weapon . | . . . Parts Attached 18 | 8 7 3 Power 3 | 2 1 . Engine 2 | 2 . . Core 1 | . 1 . Reactor . | . . . Propulsion 5 | 2 2 1 Treads . | . . . Leg 5 | 2 2 1 Wheel . | . . . Hover . | . . . Flight . | . . . Utility 6 | 3 3 . Device 4 | 2 2 . Storage . | . . . Processor . | . . . Hackware . | . . . Protection 2 | 1 1 . Artifact . | . . . Weapon 4 | 1 1 2 Energy Gun 1 | . 1 . Energy Cannon 1 | . . 1 Ballistic Gun 1 | 1 . . Ballistic Cannon . | . . . Launcher . | . . . Special Weapon 1 | . . 1 Impact Weapon . | . . . Slashing Weapon . | . . . Piercing Weapon . | . . . Special Melee Weapon . | . . . Unidentified Prototypes . | . . . Parts Lost . | . . . Power . | . . . Propulsion . | . . . Utility . | . . . Weapon . | . . . Highest Loss Streak . | . . . To Critical Strikes . | . . . Average Backups 1 | . . 1 Power . | . . . Propulsion . | . . . Utility . | . . . Weapon 1 | . . 1 Tool/Special . | . . . Unused Backups . | . . . Power . | . . . Propulsion . | . . . Utility . | . . . Weapon . | . . . Tool/Special . | . . . Average Slot Usage (%) 91 | . 86 94 Engine 11 | . 15 8 Core 6 | . 2 8 Leg 30 | . 25 34 Device 25 | . 24 25 Protection 8 | . 8 8 Energy Gun 4 | . 2 5 Ballistic Gun 2 | . 6 . Special Weapon 1 | . . 2 Peak Build Rating 19 | 8 16 19 Average Rating 14 | 6 11 16 On Entrance 8 | . 8 16 Avg Prop Armor Cover (%) . | . . . Naked Turns 39 | . . 39 Heaviest Build 22 | 11 17 22 Greatest Support 50 | 20 40 50 Greatest Overweight (x) 1 | 1 . . Average Overweight (x) . | . . . Largest Inventory Capacity 3 | . . 3 Average Capacity 1 | . . 2 Most Carried 2 | . . 2 Average Carried 1 | . . 1 Final Capacity 3 | . . 3 Final Carried . | . . . Class Distribution -------------------- 100% | Hacker-Mutant Dominant Class ---------------- Hacker-Mutant | -10/Materials Hacker-Mutant | -10/Subcaves Resources | -11 -10 -10 ----------- Run | Yrd Mat Sub Matter Collected 539 | 244 212 83 Remotely . | . . . Salvage Created 339 | . 202 137 Parts 18 | . 10 8 Haulers Intercepted 1 | . 1 . Recyclers Shooed 1 | . 1 . Parts Field Recycled . | . . . Retrieved Matter . | . . . Parts Self-Destructed . | . . . Prevented . | . . . Parts Restored . | . . . Kills | -11 -10 -10 ------- Run | Yrd Mat Sub Combat Hostiles Destroyed 16 | . 6 10 Guns 12 | . 5 7 Cannons 2 | . . 2 Classes Destroyed 4 | . 2 2 Hauler 1 | . 1 . Swarmer 6 | . . 6 Grunt 6 | . 6 . Subdweller 4 | . . 4 Best Kill Streak 4 | . 4 4 Combat Bots Only 4 | . 4 4 Max Kills in Single Turn 1 | . 1 1 Gunslinging . | . . . Exploded . | . . . Melee . | . . . Uniques/NPCs Destroyed . | . . . Combat | -11 -10 -10 -------- Run | Yrd Mat Sub Hostile Shots Fired 160 | . 36 124 Missed 48 | . 3 45 Hits 112 | . 33 79 Projectile 112 | . 33 79 Critical Strikes 3 | . 1 2 Damage Taken 1309 | . 260 1049 Core 998 | . 186 812 Absorbed by Shields . | . . . Redirected to Core 739 | . 163 576 Ignored by Resistances 742 | . 165 577 Core Remaining (%) 100 | 100 . . Volleys Fired 112 | . 52 60 Largest 1 | . 1 1 Hottest 100 | . 65 100 Shots Fired 111 | . 52 59 Gun 69 | . 52 17 Cannon 12 | . . 12 Launcher . | . . . Special 30 | . . 30 Kinetic 37 | . 37 . Thermal 74 | . 15 59 Explosive . | . . . Electromagnetic . | . . . Robot Hit Streak 36 | . 29 36 Robot Miss Streak 1 | . 1 1 Penetration Max . | . . . Secondary Targets . | . . . Shots Hit Robots 102 | . 48 54 Core Hits 31 | . 15 16 Critical Kills 1 | . . 1 Critical Parts Destroyed . | . . . Critical Strikes 7 | . 1 6 Burn 6 | . 1 5 Meltdown 1 | . . 1 Melee Attacks . | . . . Impact . | . . . Slashing . | . . . Piercing . | . . . Sneak Attacks . | . . . Combat Hostiles . | . . . Follow-up Attacks . | . . . Damage Inflicted 1482 | . 626 856 Guns 872 | . 623 249 Cannons 305 | . . 305 Explosions . | . . . Melee . | . . . Ramming 3 | . 3 . Kinetic 417 | . 417 . Thermal 1062 | . 206 856 Explosive . | . . . Electromagnetic . | . . . Impact . | . . . Slashing . | . . . Piercing . | . . . Highest Corruption . | . . . Average Corruption . | . . . Corruption Purged . | . . . Corruption Blocked . | . . . Overload Shots . | . . . Overflow Damage . | . . . Projectiles . | . . . Explosions . | . . . Melee . | . . . Knockbacks . | . . . Impact . | . . . Kinetic . | . . . Secondary . | . . . Self-Inflicted Damage . | . . . Shots . | . . . Rammed . | . . . Targets Rammed 1 | . 1 . Kicked 1 | . 1 . Crushed . | . . . Highest Temperature 132 | . 132 . Average Temperature 29 | . 29 . Received Heat Transfer 366 | . 258 108 Siege Activations . | . . . Martial Activations . | . . . Shielding Activations . | . . . Robots Disrupted . | . . . Combat Hostiles . | . . . Robots Corrupted . | . . . Combat Hostiles . | . . . Parts Fried . | . . . Impact Corruptions . | . . . Robots Melted 2 | . 1 1 Combat Hostiles 2 | . 1 1 Parts Melted 2 | . . 2 Heat Transferred 4342 | . 555 3787 Parts Sabotaged . | . . . Parts Stolen . | . . . Parts Stripped . | . . . Power Chain Reactions . | . . . Alert | -11 -10 -10 ------- Run | Yrd Mat Sub Maximum Alert Level . | . . . Low Security (%) 100 | 100 100 . Level 1 . | . . . Level 2 . | . . . Level 3 . | . . . Level 4 . | . . . Level 5 . | . . . High Security . | . . . Max Security . | . . . Peak Influence 55 | . 55 . Initial . | . . . Average 6 | . 7 . Influence Increases 362 | . 202 160 Destroy 0b10 Robot/C 240 | . 120 120 Destroy 0b10 Robot/NC 5 | . 5 . Destroy Leader 42 | . 32 10 Successful Hack 30 | . 30 . Lose Combat Pursuer 45 | . 15 30 Influence Decreases 362 | . 202 160 Time Decay 357 | . 197 160 Purge Threat 5 | . 5 . Squads Dispatched . | . . . Investigation . | . . . Extermination . | . . . Reinforcement . | . . . Assault . | . . . Garrison . | . . . Intercept . | . . . Searches Triggered . | . . . Construction Impeded . | . . . Haulers Reinforced . | . . . Active Scanning Responses . | . . . Cargo Convoy Interrupts . | . . . Stealth | -11 -10 -10 --------- Run | Yrd Mat Sub Distress Signals 2 | . 2 . Communications Jammed . | . . . Distress Signals . | . . . Times Spotted 28 | . 12 16 Peak Tracking Total 6 | . 5 6 Tactical Retreats 2 | . 1 1 Traps | -11 -10 -10 ------- Run | Yrd Mat Sub Traps Triggered 4 | . 1 3 Indirectly . | . . . Trap Hack Attempts . | . . . Triggered . | . . . Disarmed 2 | . 2 . Reprogrammed . | . . . Reused . | . . . Traps Extracted . | . . . Installed . | . . . Triggered . | . . . Machines | -11 -10 -10 ---------- Run | Yrd Mat Sub Machines Disabled . | . . . Max in Single Turn . | . . . Machines Repaired . | . . . Machines Dismantled . | . . . Machines Sabotaged . | . . . Overloaded Fab Kills . | . . . Hacking | -11 -10 -10 --------- Run | Yrd Mat Sub Machines Accessed 10 | . 10 . Terminals 8 | . 8 . Fabricators . | . . . Repair Stations . | . . . Recycling Units 2 | . 2 . Scanalyzers . | . . . Garrison Access . | . . . Total Hacks 48 | . 48 . Successful 40 | . 40 . Failed 8 | . 8 . Catastrophic . | . . . Database Lockouts . | . . . Manual 34 | . 34 . Terminals 45 | . 45 . Fabricators . | . . . Repair Stations . | . . . Recycling Units 3 | . 3 . Scanalyzers . | . . . Garrison Access . | . . . Terminal Hacks 27 | . 27 . Prototype ID Bank 20 | . 20 . Branch Access Points 1 | . 1 . Unreport Threat 1 | . 1 . Disarm Traps 2 | . 2 . Security Status 1 | . 1 . Registered Components 1 | . 1 . Zone Layout 1 | . 1 . Fabricator Hacks . | . . . Repair Station Hacks . | . . . Recycling Unit Hacks 2 | . 2 . Retrieve Components 2 | . 2 . Scanalyzer . | . . . Garrison Access Hacks . | . . . Unauthorized Hacks 11 | . 11 . Terminals 11 | . 11 . Botnet 6 | . 6 . Skim 5 | . 5 . Fabricators . | . . . Repair Stations . | . . . Recycling Units . | . . . Scanalyzers . | . . . Garrison Access . | . . . Data Cores Recovered . | . . . Used . | . . . Hacking Detections 8 | . 8 . Full Trace Events . | . . . Feedback Events . | . . . Feedback Blocked . | . . . Robot Schematics Acquired . | . . . Robots Built . | . . . Authchips . | . . . Time . | . . . Total Robot Build Rating . | . . . Part Schematics Acquired . | . . . Parts Built . | . . . Authchips . | . . . Time . | . . . Total Part Build Rating . | . . . Part Studies Acquired . | . . . Parts Repaired . | . . . Time . | . . . Parts Recycled . | . . . Recycled Matter . | . . . Retrieved Matter . | . . . Retrieved Components 10 | . 10 . Parts Scanalyzed . | . . . Part Schematics Acquired . | . . . Parts Damaged . | . . . Bothacking | -11 -10 -10 ------------ Run | Yrd Mat Sub Used RIF Installer . | . . . Robots Hacked . | . . . Non-combat . | . . . Combat . | . . . Robot Hacks Applied . | . . . Relay Couplers Released . | . . . Fabnet Peak Effective % . | . . . Robots Rewired . | . . . Allies Hacked . | . . . Hacks Repelled . | . . . Allies | -11 -10 -10 -------- Run | Yrd Mat Sub Total Allies . | . . . Largest Group . | . . . Highest-Rated Group . | . . . Highest-Rated Ally . | . . . Total Orders . | . . . Ally Attacks . | . . . Total Damage . | . . . Kills . | . . . Allies Corrupted . | . . . Allies Melted . | . . . Intel | -11 -10 -10 ------- Run | Yrd Mat Sub Active Infowar (turns) 2036 | 49 776 1211 Terrain 2032 | 45 776 1211 Structural 311 | . 311 . Seismic 2036 | 49 776 1211 Robot Analysis Total . | . . . Derelict Logs Recovered 2 | . . 2 Drone Launches . | . . . Drone Recoveries . | . . . Exploration | -11 -10 -10 ------------- Run | Yrd Mat Sub Turns Passed 2122 | 68 776 1278 Spaces Moved 1487 | 50 521 916 Core 92 | 6 . 86 Treads . | . . . Legs 1395 | 44 521 830 Wheels . | . . . Hover . | . . . Flight . | . . . Fastest Speed 50 | 50 120 50 Average Speed 117 | 113 120 116 Slowest Speed 125 | 120 120 125 Overloaded Moves . | . . . Propulsion Burnouts . | . . . Robots Hopped . | . . . Potential Cave-ins . | . . . Cave-ins Triggered . | . . . Exploration Rate (%) 46 | 5 83 52 Regions Visited 2 Branch Regions 1 Pre-discovered Areas 3 | . 2 1 Known Exits Taken 2 | 1 1 . Unknown Exits Taken . | . . . Scrap Searched 1 | . . 1 Spaces Dug 1 | . . 1 Terrain Destroyed 1 | . . 1 Melee . | . . . Projectile 1 | . . 1 AOE . | . . . Terrain Rammed . | . . . Walls Destroyed . | . . . Machines Disabled . | . . . Actions | -11 -10 -10 --------- Run | Yrd Mat Sub Total 1710 | 57 617 1036 Wait 67 | . 19 48 Move 1485 | 49 520 916 Hop . | . . . Pick Up 2 | . . 2 Fast Attach 17 | 8 8 1 Attach 1 | . . 1 Detach . | . . . Swap 5 | . . 5 Drop 6 | . 4 2 Fire 112 | . 52 60 Melee . | . . . Ram . | . . . Kick 1 | . 1 . Crush . | . . . Escape Stasis . | . . . Rewire . | . . . Trap . | . . . Miscellaneous 14 | . 13 1 Route ------- -11/Scrapyard -10/Materials (discovered 6 exits: *Mat x3 / *Min x2 / *Sub) -10/Subcaves (discovered 4 exits: *Mat x2 / *Rec / [*Scr]) History --------- Turn | Location | Event 1 | -11/Scrapyard | Upgraded with Power slot (x1) 1 | -11/Scrapyard | Upgraded with Propulsion slot (x3) 1 | -11/Scrapyard | Upgraded with Utility slot (x3) 6 | -11/Scrapyard | Identified exit to Materials 6 | -11/Scrapyard | Discovered exit to Materials (range 16) 69 | -11/Scrapyard | Entered Materials 113 | -10/Materials | Identified exit to Mines 313 | -10/Materials | Build established: Hacker-Mutant 353 | -10/Materials | Identified exit to Materials 353 | -10/Materials | Discovered exit to Materials (range 14) 488 | -10/Materials | Learned location of 1 exit from Recycling 551 | -10/Materials | Identified exit to Subcaves 646 | -10/Materials | Learned Storage trap positions 680 | -10/Materials | Learned Storage stockpile data 704 | -10/Materials | Learned location of Recycling (-9) 720 | -10/Materials | Learned location of Storage (-9) 748 | -10/Materials | Learned location of 1 exit from Storage 784 | -10/Materials | Learned Storage terminal intel 832 | -10/Materials | Loaded intel: 2 recycling unit locations 845 | -10/Materials | Entered Subcaves 846 | -10/Subcaves | Approached by a straggling Scientist 846 | -10/Subcaves | Identified exit to Materials 847 | -10/Subcaves | Reached level 2 927 | -10/Subcaves | Discovered exit to Materials (range 10) 951 | -10/Subcaves | Shifting Twisted Machinery released Sub. Beam Cannon 959 | -10/Subcaves | Shifting Twisted Machinery released Flamer 1088 | -10/Subcaves | Shifting Twisted Machinery released Sub. Laser 1101 | -10/Subcaves | Shifting Twisted Machinery released Sub. Optics 1332 | -10/Subcaves | Learned location of Zion (-6) 1361 | -10/Subcaves | Shifting Twisted Machinery released Battle Rifle 1367 | -10/Subcaves | Shifting Twisted Machinery released Sub. Monowheel 1446 | -10/Subcaves | Identified exit to Recycling 1446 | -10/Subcaves | Discovered exit to Recycling (range 10) 1753 | -10/Subcaves | Core integrity fell below 50% 2003 | -10/Subcaves | Core integrity fell below 20% 2056 | -10/Subcaves | Released all parts (11) 2069 | -10/Subcaves | Learned 2 Materials zone layouts 2071 | -10/Subcaves | A swath of the cavern ceiling suddenly collapsed 2123 | -10/Subcaves | Destroyed by JJ-3RN(R) with Subdweller Laser Last Messages --------------- 02056_ Released Aluminum Leg. 02056_ Released Lgt. Nuclear Core. 02056_ Released Lgt. Ion Engine. 02056_ Released Aluminum Leg. 02056_ Released Seismic Detector. 02056_ Released Terrain Scanner. 02056_ Released Lgt. Armor Plating. 02056_ Released Imp. Heat Sink. 02056_ Released Mak. Leg. 02056_ Released Flamer. [Achievement: Live, Flee, And Rebuild] 02069_ Acquired derelict log, extracted data. Data stored: Materials zone layouts (x2). A swath of the cavern ceiling suddenly collapses. 02074_ Dropped Broken Sub. Beam Cannon. 02109_ 8R-NAT(R) destroyed. 02113_ Acquired 10 matter. 02114_ JJ-3RN(R) affixes Scrap Shield Fragment to Scrap Shield. Map ----- +----------------------------------------------------+ | ?????????????????????????????????????????????????? | | ?????????????????????????????????????????????????? | | ?????????????????????????????????????????????????? | | ?????????????????????????????????????????????????? | | ?????????????????????????????????????????????????? | | ?????????????????????????????????????????????????? | | ?????????????????????????????????????????????????? | | ?????????????????????????????????????????????????? | | ??????????#######????????????????????????????????? | | ??????????# ###??????????????????????????????? | | ??????????# #?####?????????????????????????? | | ??????????# #?## ###???????????????????????? | | ??????????# #### #???????????????????????? | | ?????????## ## ##??????????????????????## | | ?????????# ## ###?????????????????????#??# | | ?????????## ## ##???????????????????##????## | | ?????????## ##?###???????????????????##??? | | ?????????# ##? #??????????????????##?#?# | | ?????????# "###"#????????????????#????#?#? | | ?????????## ###"""""#"#??#????????????###?#??##? | | ??????????### ??##"#""""# ## ????????##??##??#??? | | ????????????#### "#""""### ??????????#?###?#?#? | | ????????????## ######"#""# ?????????????##?###?# | | ??#????????## ##"""#"""#"#???????????#????##?##??# | | ???????????# " #""""]#######???????????#?###??### | | #??????????# ""#""#"#""##@;;#???????? ?###??#?### | | ???????????## "##""#""#RR#;##??????